bitfinex/quotes_BTCUSD_20251209
["timestamp","ask_amount","ask_price","bid_price","bid_amount"]
[1765315012036,0.21485993,93084.0,93083.0,0.07092312]
[1765315013231,0.21585993,93084.0,93083.0,0.07092312]
[1765315013383,0.001,93084.0,93083.0,0.28578512]
[1765315013590,0.002,93084.0,93083.0,0.28578512]
[1765315014163,0.21685969,93084.0,93083.0,0.07092312]
[1765315014359,0.23693029,93083.0,93082.0,0.00025168]
[1765315014799,0.25280029,93083.0,93082.0,0.00025168]
[1765315014958,0.23693029,93083.0,93082.0,0.00025168]
[1765315015824,0.23793029,93083.0,93082.0,0.00025168]
[1765315016175,0.001,93083.0,93082.0,0.03968168]
[1765315016377,0.001,93083.0,93082.0,0.28306738]
[1765315016595,0.001,93083.0,93082.0,0.26010738]
[1765315017106,0.001,93083.0,93082.0,0.28306738]
[1765315017511,0.001,93083.0,93082.0,0.26010738]
[1765315017852,0.001,93083.0,93082.0,0.28306738]
[1765315018709,0.001,93083.0,93082.0,0.26010738]
[1765315018908,0.001,93083.0,93082.0,0.28306738]
[1765315020897,0.001,93083.0,93082.0,0.26010738]
[1765315022288,0.001,93083.0,93082.0,0.28306738]
[1765315024026,0.001,93083.0,93082.0,0.28468025]
[1765315025315,0.001,93083.0,93082.0,0.26172025]
[1765315026028,0.001,93083.0,93082.0,0.04685594]
[1765315026355,0.23793029,93083.0,93082.0,0.02877307]
[1765315026511,0.23793029,93083.0,93082.0,0.00025168]
[1765315027615,0.27867029,93083.0,93082.0,0.00025168]
[1765315029696,0.28870625,93083.0,93082.0,0.00025168]
[1765315030035,0.01103596,93083.0,93082.0,0.25454599]
[1765315030223,0.001,93083.0,93082.0,0.25615886]
[1765315030428,0.001,93083.0,93082.0,0.35145189]
[1765315031056,0.001,93083.0,93082.0,0.37265587]
[1765315031279,0.001,93083.0,93082.0,0.36145376]
[1765315031493,0.001,93083.0,93082.0,0.36245376]
[1765315031672,0.44173638,93110.0,93109.0,0.21480008]
[1765315031844,0.44173638,93110.0,93109.0,0.28246365]
[1765315032051,0.19163638,93110.0,93109.0,0.28246365]
[1765315032674,0.23193638,93110.0,93109.0,0.28246365]
[1765315033328,0.23193638,93110.0,93109.0,0.06766357]
[1765315033533,0.23193638,93110.0,93109.0,0.28246557]
[1765315033773,0.25953638,93110.0,93109.0,0.06866357]
[1765315033968,0.26053638,93110.0,93109.0,0.06866357]
[1765315034135,0.26053638,93110.0,93109.0,0.28346557]
[1765315034531,0.19913638,93110.0,93109.0,0.28346557]
[1765315034734,0.32783638,93110.0,93109.0,0.28346557]
[1765315035766,0.35163638,93110.0,93109.0,0.28346557]
[1765315036860,0.37163638,93110.0,93109.0,0.28346557]
[1765315037066,0.30103638,93110.0,93109.0,0.28346557]
[1765315037466,0.27033638,93110.0,93109.0,0.28346557]
[1765315037672,0.01103638,93110.0,93109.0,0.28346557]
[1765315037919,0.3091,93110.0,93109.0,0.28346557]
[1765315038097,0.31913638,93110.0,93109.0,0.28346557]
[1765315038320,0.3091,93110.0,93109.0,0.28346557]
[1765315038763,0.9125,93110.0,93109.0,0.28346557]
[1765315038991,1.05360969,93110.0,93109.0,0.06866357]
[1765315039222,1.11034629,93110.0,93109.0,0.001]
[1765315039432,1.12734629,93110.0,93109.0,0.001]
[1765315039840,1.30484629,93110.0,93109.0,0.001]
[1765315041824,0.30484629,93110.0,93109.0,0.001]
[1765315042017,1.30484629,93110.0,93109.0,0.001]
[1765315042645,1.65806928,93110.0,93109.0,0.001]
[1765315042874,0.65806928,93110.0,93109.0,0.001]
[1765315043035,1.68119377,93110.0,93109.0,0.001]
[1765315043252,1.69037377,93110.0,93109.0,0.001]
[1765315043652,1.68937377,93110.0,93109.0,0.001]
[1765315043987,0.2148582,93085.0,93083.0,0.00918]
[1765315044146,0.2148582,93085.0,93084.0,0.0492941]
[1765315044351,0.2148582,93085.0,93079.0,0.01074356]
[1765315044352,0.214862,93083.0,93082.0,0.00025168]
[1765315044556,1.230172,93083.0,93082.0,0.00025168]
[1765315044978,1.25224029,93083.0,93082.0,0.00025168]
[1765315045155,1.02206829,93083.0,93082.0,0.00025168]
[1765315045377,0.81756829,93083.0,93082.0,0.00025168]
[1765315045785,0.81756829,93083.0,93082.0,0.04672597]
[1765315045972,0.4135,93083.0,93082.0,0.04672597]
[1765315046172,0.4345,93083.0,93082.0,0.04672597]
[1765315046671,0.4355,93083.0,93082.0,0.04672597]
[1765315046876,0.4355,93083.0,93082.0,0.00025168]
[1765315047094,1.001,93083.0,93082.0,0.00025168]
[1765315047791,1.01631,93083.0,93082.0,0.00025168]
[1765315047991,1.001,93083.0,93082.0,0.00025168]
[1765315049752,1.02306829,93083.0,93082.0,0.00025168]
[1765315049947,1.23793029,93083.0,93082.0,0.00025168]
[1765315053122,0.27787029,93083.0,93082.0,0.00025168]
[1765315053266,1.27787029,93083.0,93082.0,0.00025168]
[1765315053675,1.63109328,93083.0,93082.0,0.00025168]
[1765315053900,1.64112163,93083.0,93082.0,0.00025168]
[1765315054098,1.67338671,93083.0,93082.0,0.00025168]
[1765315054918,1.67238671,93083.0,93082.0,0.00125168]
[1765315055635,1.67238671,93083.0,93082.0,0.00225168]
[1765315056595,1.68938671,93083.0,93082.0,0.00225168]
[1765315056821,1.67238671,93083.0,93082.0,0.00225168]
[1765315057031,1.68938671,93083.0,93082.0,0.00225168]
[1765315057637,1.67238671,93083.0,93082.0,0.00225168]
[1765315057831,1.68938671,93083.0,93082.0,0.00225168]
[1765315058453,1.67238671,93083.0,93082.0,0.00225168]
[1765315058651,1.68938671,93083.0,93082.0,0.00225168]
[1765315068724,1.67238671,93083.0,93082.0,0.00225168]
[1765315068943,1.68938671,93083.0,93082.0,0.00225168]
[1765315069163,1.60223372,93083.0,93082.0,0.00225168]
[1765315069344,1.59251864,93083.0,93082.0,0.00225168]
[1765315069542,1.65504163,93083.0,93082.0,0.00225168]
[1765315069764,1.67990163,93083.0,93082.0,0.00225168]
[1765315070348,1.70302806,93083.0,93082.0,0.00225168]
[1765315073373,1.68602806,93083.0,93082.0,0.00225168]
[1765315073593,1.70302806,93083.0,93082.0,0.00225168]
[1765315079460,1.75207827,93083.0,93082.0,0.00225168]
[1765315079758,1.71354778,93083.0,93082.0,0.00125168]
[1765315079977,1.71354778,93083.0,93043.0,0.22570145]
[1765315079978,0.03281566,93046.0,93043.0,0.22570145]
[1765315080171,0.03281566,93046.0,93045.0,0.21494975]
[1765315080172,0.02206829,93046.0,93045.0,0.21494975]
[1765315080533,0.02206829,93046.0,93045.0,0.21600478]
[1765315081189,0.21494744,93046.0,93045.0,0.00105503]
[1765315081471,0.23701573,93046.0,93045.0,0.00105503]
[1765315081697,0.02206829,93046.0,93045.0,0.00750858]
[1765315082418,0.23788685,93050.0,93046.0,0.22569481]
[1765315082419,0.01074702,93049.0,93046.0,0.22569481]
[1765315082625,0.02206829,93046.0,93045.0,0.00945355]
[1765315083180,0.02206829,93046.0,93045.0,0.02329355]
[1765315083415,0.02206829,93046.0,93045.0,0.27389617]
[1765315083628,0.02206829,93046.0,93045.0,0.2749512]
[1765315084695,0.02206829,93046.0,93045.0,0.2500912]
[1765315084890,0.00999456,93057.0,93055.0,0.21492665]
[1765315085095,0.00999456,93057.0,93056.0,0.04866201]
[1765315085096,0.5478,93057.0,93056.0,0.04866201]
[1765315085312,0.55785887,93057.0,93056.0,0.04866201]
[1765315085706,0.50915887,93057.0,93056.0,0.03282201]
[1765315086103,0.55945887,93057.0,93056.0,0.03282201]
[1765315086304,0.51195887,93057.0,93056.0,0.03282201]
[1765315086503,0.51195887,93057.0,93056.0,0.02364201]
[1765315086742,0.5122,93056.0,93055.0,0.21653829]
[1765315087150,0.001,93057.0,93055.0,0.25683829]
[1765315087362,0.001,93057.0,93056.0,0.0403]
[1765315087574,1.017,93060.0,93059.0,0.21491741]
[1765315087778,1.0,93060.0,93059.0,0.3141702]
[1765315088089,0.0341639,93076.0,93059.0,0.3141702]
[1765315088090,0.2817,93077.0,93073.0,0.21488405]
[1765315088376,0.01005534,93076.0,93073.0,0.22562901]
[1765315088601,1.03226529,93076.0,93074.0,0.04776548]
[1765315088813,1.03226529,93076.0,93073.0,0.01074425]
[1765315088814,0.21491335,93061.0,93057.0,0.0107461]
[1765315089012,0.00999456,93066.0,93065.0,0.21490356]
[1765315089188,0.00999456,93066.0,93065.0,0.23973356]
[1765315089395,0.03760327,93077.0,93065.0,0.23973356]
[1765315089396,1.02206829,93076.0,93075.0,0.21487996]
[1765315089575,1.0321238,93076.0,93075.0,0.21488047]
[1765315089773,1.0321238,93076.0,93075.0,0.04619959]
[1765315089975,0.01005551,93076.0,93074.0,0.21688212]
[1765315090290,1.0,93076.0,93074.0,0.01274413]
[1765315090492,1.0,93076.0,93074.0,0.22762617]
[1765315090814,1.0,93076.0,93075.0,0.002]
[1765315091049,0.22493208,93076.0,93073.0,0.23480916]
[1765315091319,0.21487816,93076.0,93074.0,0.21488232]
[1765315091536,1.0,93076.0,93075.0,0.002]
[1765315091736,1.01005303,93076.0,93075.0,0.002]
[1765315091940,0.01005303,93076.0,93073.0,0.28546741]
[1765315092239,0.21487822,93076.0,93074.0,0.002]
[1765315092441,0.21487822,93076.0,93073.0,0.28746741]
[1765315092644,0.2148811,93075.0,93073.0,0.27472327]
[1765315092845,0.0107439,93076.0,93074.0,0.21488278]
[1765315093047,1.0107439,93076.0,93075.0,0.002]
[1765315093249,1.0,93076.0,93075.0,0.002]
[1765315093398,0.01074367,93078.0,93075.0,0.21688047]
[1765315093399,1.0,93077.0,93075.0,0.21688047]
[1765315093911,1.21487816,93076.0,93075.0,0.002]
[1765315094136,0.21487832,93076.0,93073.0,0.01074425]
[1765315094335,0.001,93075.0,93074.0,0.02]
[1765315094980,0.21487832,93076.0,93074.0,0.02]
[1765315095593,0.24174052,93075.0,93074.0,0.02]
[1765315095874,0.25471047,93075.0,93074.0,0.02022804]
[1765315096113,0.27777876,93075.0,93074.0,0.02222804]
[1765315096275,1.27777876,93075.0,93074.0,0.02222804]
[1765315096491,1.28782907,93075.0,93074.0,0.02422804]
[1765315096808,1.28782907,93075.0,93074.0,0.02222804]
[1765315097153,1.28782907,93075.0,93074.0,0.02422804]
[1765315101501,1.35035206,93075.0,93074.0,0.02422804]
[1765315101679,1.64105206,93075.0,93074.0,0.02422804]
[1765315102518,0.64105206,93075.0,93074.0,0.02422804]
[1765315102701,1.64105206,93075.0,93074.0,0.02422804]
[1765315103696,1.67331864,93075.0,93074.0,0.02422804]
[1765315108060,1.69647739,93075.0,93074.0,0.02422804]
[1765315109941,1.69547739,93075.0,93074.0,0.02022804]
[1765315110327,1.69547739,93075.0,93074.0,0.02222804]
[1765315111519,1.69547997,93075.0,93074.0,0.02222804]
[1765315111713,1.77543961,93075.0,93074.0,0.02222804]
[1765315115067,1.77544169,93075.0,93074.0,0.02222804]
[1765315115593,0.21497979,93032.0,93031.0,0.00918]
[1765315115751,0.21497979,93032.0,93031.0,0.01079287]
[1765315115952,0.24570636,93037.0,93032.0,0.01074898]
[1765315116160,0.01074852,93036.0,93032.0,0.00161287]
[1765315116357,0.21497748,93033.0,93032.0,0.00161287]
[1765315116559,0.23704577,93033.0,93032.0,0.00731406]
[1765315116806,0.23704577,93033.0,93032.0,0.0028107]
[1765315117163,0.23704577,93033.0,93032.0,0.0038107]
[1765315117376,0.23804577,93033.0,93032.0,0.0038107]
[1765315117804,0.23804577,93033.0,93032.0,0.0028107]
[1765315118002,0.23804577,93033.0,93032.0,0.0038107]
[1765315118163,0.02306829,93033.0,93032.0,0.09448696]
[1765315118366,0.02306829,93033.0,93032.0,0.30946675]
[1765315119275,0.001,93033.0,93032.0,0.32458675]
[1765315119479,0.001,93033.0,93032.0,0.34930675]
[1765315122709,0.001,93033.0,93032.0,0.30946675]
[1765315123038,0.001,93033.0,93032.0,0.09448696]
[1765315123281,0.001,93033.0,93032.0,0.0038107]
[1765315123489,0.001,93033.0,93032.0,0.21879049]
[1765315123984,0.001,93033.0,93032.0,0.0038107]
[1765315125723,1.63626503,93033.0,93032.0,0.00219783]
[1765315126005,1.56480382,93033.0,93032.0,0.00219783]
[1765315126208,1.57169533,93033.0,93032.0,0.00219783]
[1765315126655,1.57169533,93033.0,93032.0,0.00119783]
[1765315126952,1.59556533,93033.0,93032.0,0.00119783]
[1765315127157,1.59556533,93033.0,93032.0,0.00419783]
[1765315127802,1.57076533,93033.0,93032.0,0.00419783]
[1765315128307,1.57076533,93033.0,93032.0,0.00219783]
[1765315128726,1.57176533,93033.0,93032.0,0.00319783]
[1765315128906,1.59436533,93033.0,93032.0,0.00319783]
[1765315129154,0.018,93033.0,93032.0,0.26024762]
[1765315129329,0.018,93033.0,93032.0,0.07662534]
[1765315129511,0.018,93033.0,93032.0,0.00519783]
[1765315129714,0.23297748,93033.0,93032.0,0.00519783]
[1765315129953,0.018,93033.0,93032.0,0.00519783]
[1765315130668,0.018,93033.0,93032.0,0.22017762]
[1765315130964,0.23297748,93033.0,93032.0,0.00519783]
[1765315131470,0.018,93033.0,93032.0,0.00519783]
[1765315131941,0.23297748,93033.0,93032.0,0.00519783]
[1765315132136,0.25504577,93033.0,93032.0,0.00519783]
[1765315133820,0.018,93033.0,93032.0,0.22179049]
[1765315134068,0.018,93033.0,93032.0,0.0068107]
[1765315134270,0.018,93033.0,93032.0,0.22179049]
[1765315137239,0.23297748,93033.0,93032.0,0.0068107]
[1765315137652,0.018,93033.0,93032.0,0.0068107]
[1765315138023,0.018,93033.0,93032.0,0.07720387]
[1765315140052,0.018,93033.0,93032.0,0.29218366]
[1765315140486,0.018,93033.0,93032.0,0.30800366]
[1765315140699,0.018,93033.0,93032.0,0.0068107]
[1765315140700,0.03441,93033.0,93032.0,0.0068107]
[1765315140819,0.04006829,93033.0,93032.0,0.0068107]
[1765315141021,0.04006829,93033.0,93032.0,0.22179049]
[1765315141424,0.04006829,93033.0,93032.0,0.0068107]
[1765315141631,0.27145577,93033.0,93032.0,0.0068107]
[1765315141838,1.29405577,93033.0,93032.0,0.0068107]
[1765315142239,0.41226829,93033.0,93032.0,0.0068107]
[1765315142496,0.41226829,93033.0,93032.0,0.07640552]
[1765315142694,0.62724577,93033.0,93032.0,0.07640552]
[1765315142898,0.41246829,93033.0,93032.0,0.29138531]
[1765315143276,0.04006829,93033.0,93032.0,0.29138531]
[1765315143483,0.31156829,93033.0,93032.0,0.29138531]
[1765315144026,0.36366829,93033.0,93032.0,0.29138531]
[1765315144980,0.36346829,93033.0,93032.0,0.29138531]
[1765315145408,0.36286829,93033.0,93032.0,0.29138531]
[1765315145635,0.001,93033.0,93032.0,0.33023531]
[1765315146855,1.0,93048.0,93046.0,0.01074737]
[1765315147064,1.0,93048.0,93047.0,0.02471914]
[1765315147265,1.21494367,93048.0,93047.0,0.02471914]
[1765315147688,0.3854,93048.0,93047.0,0.06356914]
[1765315148299,0.3854,93048.0,93047.0,0.27951427]
[1765315148501,0.3854,93048.0,93047.0,0.04198914]
[1765315148715,0.60034282,93048.0,93047.0,0.001]
[1765315148950,0.40746829,93048.0,93047.0,0.001]
[1765315149537,0.62241111,93048.0,93047.0,0.001]
[1765315150590,0.62241111,93048.0,93047.0,0.003]
[1765315152431,0.62241111,93048.0,93047.0,0.00376991]
[1765315153325,0.63788111,93048.0,93047.0,0.00376991]
[1765315153554,1.27381071,93048.0,93047.0,0.00376991]
[1765315153952,1.65019922,93048.0,93047.0,0.00376991]
[1765315155003,1.65019922,93048.0,93047.0,0.00176991]
[1765315155418,1.65019922,93048.0,93047.0,0.00276991]
[1765315156042,1.65019922,93048.0,93047.0,0.00176991]
[1765315156569,1.6270337,93048.0,93047.0,0.00176991]
[1765315157231,1.6502001,93048.0,93047.0,0.00176991]
[1765315159803,1.2469001,93048.0,93047.0,0.00176991]
[1765315160008,0.26225333,93048.0,93047.0,0.03981761]
[1765315160186,0.27925333,93048.0,93047.0,0.25476274]
[1765315160387,0.2692,93048.0,93047.0,0.25476274]
[1765315161441,0.00999456,93061.0,93053.0,0.01074656]
[1765315161624,0.21491047,93063.0,93060.0,0.22409485]
[1765315161845,0.02705553,93062.0,93060.0,0.2240948]
[1765315161987,0.31775553,93062.0,93060.0,0.2240948]
[1765315162185,0.01005553,93061.0,93060.0,0.00918]
[1765315162536,0.01005553,93061.0,93060.0,0.23665487]
[1765315162744,0.017,93062.0,93061.0,0.21491279]
[1765315163916,0.017,93062.0,93061.0,0.25604566]
[1765315164537,0.018,93062.0,93061.0,0.25604566]
[1765315165918,0.02,93062.0,93061.0,0.21652566]
[1765315166118,0.019,93062.0,93061.0,0.30994859]
[1765315166518,0.019,93062.0,93061.0,0.32524859]
[1765315166716,0.022,93062.0,93061.0,0.32524859]
[1765315168454,0.022,93062.0,93061.0,0.0950358]
[1765315168653,0.23691048,93062.0,93061.0,0.00161287]
[1765315168978,0.21491279,93061.0,93060.0,0.01255977]
[1765315169119,0.21491279,93061.0,93045.0,0.21494947]
[1765315169120,0.22568753,93049.0,93045.0,0.21494947]
[1765315169321,0.01074691,93050.0,93046.0,0.03757508]
[1765315169561,0.01074691,93050.0,93040.0,0.00918]
[1765315169562,0.21494975,93045.0,93040.0,0.00918]
[1765315169771,0.21495671,93042.0,93040.0,0.00918]
[1765315169975,0.21495899,93041.0,93040.0,0.00918]
[1765315170573,0.21495899,93041.0,93035.0,0.01074864]
[1765315170574,0.00999456,93037.0,93034.0,0.00918]
[1765315170810,0.00999456,93037.0,93026.0,0.21499262]
[1765315170811,0.02074401,93028.0,93025.0,0.00918]
[1765315171118,0.02206829,93026.0,93025.0,0.04980915]
[1765315171294,0.02206829,93026.0,93025.0,0.26480511]
[1765315171678,0.0107491,93031.0,93028.0,0.22573623]
[1765315171918,0.02206829,93029.0,93028.0,0.22573623]
[1765315172163,0.02206829,93029.0,93028.0,0.30301572]
[1765315172435,0.02206829,93029.0,93028.0,0.07727949]
[1765315172792,0.23705501,93029.0,93028.0,0.07727949]
[1765315172992,0.02206829,93028.0,93025.0,0.05142202]
[1765315173238,0.21499162,93027.0,93025.0,0.05142202]
[1765315173600,0.24780693,93028.0,93025.0,0.05142202]
[1765315173801,0.21499365,93026.0,93025.0,0.05142202]
[1765315174201,0.21499365,93026.0,93025.0,0.05281959]
[1765315174404,0.21499365,93026.0,93025.0,0.01219044]
[1765315174830,0.21499365,93026.0,93025.0,0.02749044]
[1765315175032,0.21599365,93026.0,93025.0,0.02949044]
[1765315175200,0.21599365,93026.0,93025.0,0.03049044]
[1765315175410,0.21599365,93026.0,93025.0,0.02949044]
[1765315175758,0.21599365,93026.0,93025.0,0.06262889]
[1765315177092,0.21599365,93026.0,93025.0,0.01519044]
[1765315177495,0.21599365,93026.0,93025.0,0.00601044]
[1765315179403,0.001,93026.0,93025.0,0.00601044]
[1765315179607,0.001,93026.0,93025.0,0.05471044]
[1765315179950,0.001,93026.0,93025.0,0.2697064]
[1765315180706,0.001,93026.0,93025.0,0.36552695]
[1765315186505,0.001,93026.0,93025.0,0.15053099]
[1765315186755,0.001,93026.0,93025.0,0.2697064]
[1765315187386,0.21599365,93026.0,93025.0,0.03049044]
[1765315187614,0.21599365,93026.0,93025.0,0.00601044]
[1765315189283,0.29340194,93026.0,93025.0,0.00439757]
[1765315190031,0.25406194,93026.0,93025.0,0.00239757]
[1765315190232,0.25406194,93026.0,93025.0,0.04676302]
[1765315190546,0.26967194,93026.0,93025.0,0.00139757]
[1765315191357,0.27167194,93026.0,93025.0,0.00139757]
[1765315191770,0.26967194,93026.0,93025.0,0.00139757]
[1765315192128,0.26967194,93026.0,93025.0,0.00239757]
[1765315192129,0.29240194,93026.0,93025.0,0.00239757]
[1765315193120,0.23199365,93026.0,93025.0,0.00239757]
[1765315193498,0.23199365,93026.0,93025.0,0.02832995]
[1765315193708,0.23199365,93026.0,93025.0,0.00239757]
[1765315195326,0.29325194,93026.0,93025.0,0.00239757]
[1765315195931,0.26985194,93026.0,93025.0,0.00239757]
[1765315196132,0.29325194,93026.0,93025.0,0.00239757]
[1765315196740,0.26985194,93026.0,93025.0,0.00239757]
[1765315197017,0.25406194,93026.0,93025.0,0.00239757]
[1765315198232,0.25406194,93026.0,93025.0,0.0478377]
[1765315198431,0.017,93026.0,93025.0,0.27201366]
[1765315198786,0.23199365,93026.0,93025.0,0.0570177]
[1765315200168,0.017,93026.0,93025.0,0.27201366]
[1765315200330,0.0100677,93032.0,93031.0,0.2149821]
[1765315200534,0.0100677,93040.0,93037.0,0.01074841]
[1765315200880,0.31844794,93041.0,93038.0,0.22571291]
[1765315201091,0.01074818,93039.0,93035.0,0.01992864]
[1765315201290,0.21496692,93038.0,93035.0,0.00918]
[1765315201490,0.22571521,93038.0,93036.0,0.04976028]
[1765315201695,0.03281658,93038.0,93036.0,0.26473068]
[1765315201949,0.03213432,93038.0,93037.0,0.21496823]
[1765315202138,0.01074748,93045.0,93042.0,0.2257023]
[1765315202467,0.017,93044.0,93043.0,0.29179723]
[1765315202615,0.00999456,93051.0,93050.0,0.2149382]
[1765315202616,0.01006475,93051.0,93050.0,0.2149382]
[1765315202824,0.02206829,93055.0,93053.0,0.21493127]
[1765315203022,0.24774151,93055.0,93054.0,0.04881776]
[1765315203222,0.22567322,93055.0,93054.0,0.04881776]
[1765315203425,0.02774621,93056.0,93054.0,0.04881776]
[1765315203630,0.21492665,93055.0,93054.0,0.04881776]
[1765315204177,0.23192437,93056.0,93054.0,0.05081776]
[1765315204378,0.23192437,93056.0,93055.0,0.05359687]
[1765315204925,0.017,93056.0,93055.0,0.05359687]
[1765315205257,0.23192434,93056.0,93055.0,0.05359687]
[1765315205489,0.23192434,93056.0,93054.0,0.004]
[1765315205490,0.21492665,93055.0,93054.0,0.004]
[1765315205731,0.21492665,93055.0,93054.0,0.002]
[1765315206098,0.21492665,93055.0,93054.0,0.005]
[1765315206316,0.21493878,93050.0,93048.0,0.01074714]
[1765315206488,0.21493878,93050.0,93046.0,0.23487479]
[1765315206489,0.22568616,93050.0,93046.0,0.23487479]
[1765315206686,0.01074644,93054.0,93049.0,0.00071286]
[1765315206687,0.22568159,93052.0,93049.0,0.00071286]
[1765315206908,0.01074679,93051.0,93047.0,0.07758725]
[1765315207131,0.01074667,93052.0,93049.0,0.01074702]
[1765315207338,0.22568073,93052.0,93049.0,0.01074702]
[1765315207519,0.01074667,93052.0,93049.0,0.2256874]
[1765315207723,0.001,93050.0,93049.0,0.2256874]
[1765315207919,0.001,93050.0,93047.0,0.07758725]
[1765315208124,0.21494051,93049.0,93047.0,0.07758725]
[1765315208489,0.01174691,93050.0,93048.0,0.21494282]
[1765315208747,0.21494051,93049.0,93047.0,0.07758725]
[1765315209064,0.01074691,93050.0,93047.0,0.07758725]
[1765315209264,0.21494051,93049.0,93047.0,0.07758725]
[1765315209674,0.21494051,93049.0,93048.0,0.03538191]
[1765315209853,0.2370088,93049.0,93048.0,0.03538191]
[1765315210219,0.2370088,93049.0,93043.0,0.00161287]
[1765315210220,0.21497748,93033.0,93032.0,0.00918]
[1765315210418,0.02206829,93034.0,93033.0,0.21497748]
[1765315210838,0.02206829,93034.0,93033.0,0.24076748]
[1765315211039,0.01074841,93037.0,93034.0,0.22572176]
[1765315211235,0.02206829,93037.0,93036.0,0.21497054]
[1765315211487,0.00999456,93042.0,93041.0,0.01074794]
[1765315211803,0.017,93044.0,93041.0,0.01074794]
[1765315212174,0.017,93044.0,93043.0,0.21495437]
[1765315212541,0.017,93044.0,93043.0,0.21583837]
[1765315212873,0.017,93044.0,93043.0,0.07203289]
[1765315213076,0.017,93044.0,93043.0,0.28698726]
[1765315213435,0.23195206,93044.0,93043.0,0.07203289]
[1765315213659,0.23195206,93044.0,93043.0,0.000884]
[1765315215843,0.23395206,93044.0,93043.0,0.000884]
[1765315216073,0.019,93044.0,93043.0,0.000884]
[1765315216260,0.23395206,93044.0,93043.0,0.000884]
[1765315218042,0.27437206,93044.0,93043.0,0.000884]
[1765315218244,0.29644035,93044.0,93043.0,0.000884]
[1765315218445,1.65970573,93044.0,93043.0,0.000884]
[1765315218734,1.69202506,93044.0,93043.0,0.000884]
[1765315219514,1.69102506,93044.0,93043.0,0.000884]
[1765315219717,1.69002506,93044.0,93043.0,0.000884]
[1765315219848,1.69102506,93044.0,93043.0,0.002884]
[1765315220050,1.69202506,93044.0,93043.0,0.002884]
[1765315220255,1.69202506,93044.0,93043.0,0.000884]
[1765315220256,1.69102506,93044.0,93043.0,0.000884]
[1765315221759,1.69202506,93044.0,93043.0,0.000884]
[1765315225627,1.79769198,93044.0,93043.0,0.000884]
[1765315225957,1.69202506,93044.0,93043.0,0.000884]
[1765315226351,1.72094333,93044.0,93043.0,0.000884]
[1765315226705,1.69202506,93044.0,93043.0,0.000884]
[1765315227032,1.79769198,93044.0,93043.0,0.000884]
[1765315227794,1.79669198,93044.0,93043.0,0.000884]
[1765315228122,1.79569198,93044.0,93043.0,0.000884]
[1765315228313,1.79969198,93044.0,93043.0,0.001884]
[1765315231255,1.55372834,93044.0,93043.0,0.001884]
[1765315231459,1.57072834,93044.0,93043.0,0.001884]
[1765315231574,1.39125133,93044.0,93043.0,0.001884]
[1765315232014,1.68195133,93044.0,93043.0,0.001884]
[1765315232229,1.31172834,93044.0,93043.0,0.001884]
[1765315232595,0.95932901,93044.0,93043.0,0.001884]
[1765315233100,0.2907,93040.0,93037.0,0.21496708]
[1765315233368,0.02206829,93038.0,93037.0,0.22571549]
[1765315234546,0.02206829,93037.0,93036.0,0.01074852]
[1765315234763,0.02206829,93036.0,93035.0,0.00940819]
[1765315236306,0.02206829,93036.0,93035.0,0.01040819]
[1765315236505,0.02206829,93036.0,93035.0,0.07901039]
[1765315237401,0.02206829,93036.0,93035.0,0.22538104]
[1765315237568,0.02206829,93036.0,93035.0,0.22638104]
[1765315240164,0.30144806,93040.0,93035.0,0.22638104]
[1765315240165,0.02889297,93059.0,93052.0,0.01074667]
[1765315240443,0.0322693,93057.0,93056.0,0.01074621]
[1765315240644,0.017,93057.0,93056.0,0.22567022]
[1765315240991,0.017,93057.0,93055.0,0.21492603]
[1765315241205,0.03906829,93057.0,93055.0,0.21492603]
[1765315241387,0.03906829,93057.0,93056.0,0.21492434]
[1765315241584,0.03906829,93057.0,93054.0,0.01074644]
[1765315241786,0.25399036,93057.0,93054.0,0.22567437]
[1765315241990,0.25399032,93057.0,93056.0,0.003]
[1765315242216,0.25499032,93057.0,93056.0,0.003]
[1765315243171,0.04006829,93057.0,93056.0,0.21792434]
[1765315243374,0.03906829,93057.0,93056.0,0.07556458]
[1765315243515,0.25399032,93057.0,93056.0,0.07556458]
[1765315243723,0.29330032,93057.0,93056.0,0.003]
[1765315244407,0.29330032,93057.0,93056.0,0.004]
[1765315248470,0.03906829,93057.0,93056.0,0.004]
[1765315248699,0.01074667,93059.0,93057.0,0.21492203]
[1765315248887,0.02224506,93066.0,93063.0,0.0107454]
[1765315248888,0.22564767,93066.0,93063.0,0.0107454]
[1765315249098,0.01235954,93063.0,93061.0,0.21491226]
[1765315249315,0.30305954,93063.0,93060.0,0.01074575]
[1765315249477,0.02206829,93062.0,93059.0,0.21491702]
[1765315250087,0.02206829,93062.0,93061.0,0.21491279]
[1765315250342,0.017,93065.0,93064.0,0.21490587]
[1765315250622,0.02206829,93072.0,93069.0,0.22563903]
[1765315250848,0.017,93071.0,93070.0,0.21489201]
[1765315251069,0.017,93071.0,93068.0,0.22564137]
[1765315251289,0.22563668,93070.0,93067.0,0.21489846]
[1765315251641,0.22563668,93070.0,93067.0,0.24493373]
[1765315251842,0.22563668,93070.0,93069.0,0.001]
[1765315252056,0.22563668,93070.0,93067.0,0.25567867]
[1765315252276,0.24770446,93072.0,93067.0,0.25567867]
[1765315252277,0.02206829,93072.0,93069.0,0.0157]
[1765315252493,0.10566692,93090.0,93067.0,0.25729154]
[1765315252494,0.01074275,93086.0,93083.0,0.0107431]
[1765315252721,0.04925926,93088.0,93086.0,0.21485508]
[1765315252922,0.03225926,93088.0,93087.0,0.02488]
[1765315253132,0.02206829,93092.0,93090.0,0.21484584]
[1765315253439,0.02073616,93096.0,93093.0,0.01074194]
[1765315253786,0.01074171,93095.0,93091.0,0.23476432]
[1765315253982,0.01074171,93095.0,93088.0,0.21484988]
[1765315253983,0.01074194,93093.0,93088.0,0.01074252]
[1765315254235,0.02685486,93093.0,93087.0,0.0940133]
[1765315254440,0.017,93094.0,93091.0,0.01074217]
[1765315254841,0.017,93094.0,93093.0,0.001]
[1765315255045,0.017,93094.0,93092.0,0.21484123]
[1765315255249,0.001,93093.0,93092.0,0.21484123]
[1765315255430,0.001,93093.0,93092.0,0.24454636]
[1765315255831,0.01716,93093.0,93092.0,0.02970513]
[1765315256032,0.21484674,93090.0,93088.0,0.03088638]
[1765315256254,0.21485046,93088.0,93087.0,0.00161287]
[1765315256458,0.23691875,93088.0,93087.0,0.00161287]
[1765315256663,0.0107431,93083.0,93080.0,0.01074344]
[1765315256997,0.0107431,93083.0,93081.0,0.04937634]
[1765315257181,0.0107431,93083.0,93074.0,0.01074413]
[1765315257182,0.02206829,93077.0,93074.0,0.01074413]
[1765315257401,0.02206829,93077.0,93076.0,0.0107439]
[1765315258077,0.01696,93082.0,93080.0,0.21486892]